bitfinex/quotes_BTCUSD_20220211
["timestamp","ask_amount","ask_price","bid_price","bid_amount"]
[1644545406817,0.50940629,43148.0,43146.0,0.157988]
[1644545407216,0.50940629,43148.0,43146.0,0.05]
[1644545407665,0.057987,43147.0,43142.0,0.05]
[1644545407866,0.383058,43147.0,43142.0,0.05]
[1644545408666,0.37406143,43144.0,43143.0,0.05798905]
[1644545409069,0.69913243,43144.0,43135.0,0.00034775]
[1644545409268,0.05,43141.0,43135.0,0.00034775]
[1644545409467,0.05,43139.0,43135.0,0.00034775]
[1644545409668,0.291797,43138.0,43128.0,0.001]
[1644545409867,0.05801,43138.0,43135.0,0.00034775]
[1644545410066,0.62469928,43137.0,43135.0,0.00034775]
[1644545410971,0.291797,43135.0,43134.0,0.00034776]
[1644545411168,0.338197,43135.0,43134.0,0.00034776]
[1644545411622,0.66481078,43135.0,43134.0,0.00034776]
[1644545411826,1.01481078,43135.0,43134.0,7.76e-06]
[1644545412030,0.95,43132.0,43125.0,0.0021]
[1644545412224,0.95,43132.0,43114.0,0.4232]
[1644545412225,0.95,43124.0,43114.0,0.0021]
[1644545412424,0.05,43117.0,43111.0,0.0032]
[1644545412624,0.05,43117.0,43110.0,0.118143]
[1644545412625,0.341797,43113.0,43112.0,0.00017393]
[1644545412825,0.95466094,43113.0,43110.0,0.00227393]
[1644545413024,0.95466094,43113.0,43100.0,0.0044]
[1644545413025,0.95,43111.0,43100.0,0.0044]
[1644545413224,0.7,43105.0,43100.0,0.0044]
[1644545413423,0.371471,43104.0,43101.0,0.01219648]
[1644545414026,0.33938797,43103.0,43101.0,0.01219648]
[1644545414221,0.371471,43104.0,43101.0,0.01219648]
[1644545414222,0.325071,43102.0,43101.0,0.01219648]
[1644545414423,0.0464,43104.0,43101.0,0.01232841]
[1644545414624,0.0464,43104.0,43101.0,0.33739941]
[1644545414822,0.0464,43104.0,43102.0,0.28869]
[1644545415073,0.57994951,43110.0,43101.0,0.01232841]
[1644545415267,0.57994951,43110.0,43101.0,0.07036541]
[1644545415268,0.291797,43106.0,43101.0,0.07036541]
[1644545415466,0.291797,43106.0,43101.0,0.17036541]
[1644545415666,0.291797,43106.0,43101.0,0.06219648]
[1644545415866,0.291797,43106.0,43102.0,0.05013193]
[1644545416066,0.291797,43106.0,43102.0,0.05]
[1644545416270,0.291797,43106.0,43101.0,0.0126176]
[1644545416468,0.058045,43105.0,43101.0,0.0126176]
[1644545416670,0.325071,43104.0,43101.0,0.0126176]
[1644545416867,0.325071,43104.0,43101.0,0.01219648]
[1644545417167,0.325071,43104.0,43101.0,0.01261761]
[1644545417372,3.2051669,43101.0,43084.0,0.16829849]
[1644545417572,3.2051669,43101.0,43084.0,0.0011]
[1644545417573,0.058061,43097.0,43084.0,0.0011]
[1644545417771,0.325071,43090.0,43084.0,0.0011]
[1644545417971,0.05,43088.0,43084.0,0.0011]
[1644545418168,0.26229891,43086.0,43084.0,0.0011]
[1644545418369,0.325071,43085.0,43084.0,0.0011]
[1644545419221,0.325071,43085.0,43083.0,0.0001]
[1644545420220,0.48387112,43085.0,43083.0,0.0001]
[1644545421218,0.325071,43085.0,43083.0,0.0001]
[1644545422019,0.383154,43085.0,43083.0,0.0001]
[1644545422219,0.38293351,43085.0,43083.0,0.0001]
[1644545422420,0.54173363,43085.0,43083.0,0.0001]
[1644545422670,0.8183323,43085.0,43083.0,0.0001]
[1644545422970,0.56884853,43084.0,43083.0,0.0001]
[1644545423569,0.287417,43084.0,43083.0,0.0001]
[1644545423972,0.56733141,43084.0,43083.0,0.0001]
[1644545424172,0.517417,43084.0,43083.0,0.0001]
[1644545424573,0.79320891,43084.0,43083.0,0.0001]
[1644545427419,0.89320891,43084.0,43083.0,0.0001]
[1644545427819,1.05200903,43084.0,43083.0,0.0001]
[1644545429019,1.045642,43084.0,43083.0,0.0001]
[1644545429721,1.092042,43084.0,43083.0,0.0001]
[1644545430769,1.08945112,43084.0,43083.0,0.0001]
[1644545432379,1.03945112,43084.0,43083.0,0.0001]
[1644545436019,1.03945112,43084.0,43062.0,0.8629]
[1644545436020,0.95,43082.0,43062.0,0.8629]
[1644545436221,0.632952,43081.0,43062.0,0.02]
[1644545436419,0.32485,43076.0,43075.0,0.00047762]
[1644545436618,0.37125,43076.0,43075.0,0.00047762]
[1644545436917,0.47125,43076.0,43075.0,0.00047762]
[1644545437122,0.545563,43076.0,43075.0,0.00047762]
[1644545437320,0.545563,43076.0,43068.0,0.30561232]
[1644545437581,0.37125,43076.0,43068.0,0.35561232]
[1644545437770,0.37125,43076.0,43066.0,0.02]
[1644545437971,0.0464,43076.0,43066.0,0.02]
[1644545438170,0.05,43073.0,43066.0,0.02]
[1644545438371,0.332527,43072.0,43066.0,0.02]
[1644545438570,0.325273,43071.0,43066.0,0.02]
[1644545438771,0.66686505,43070.0,43067.0,0.00011858]
[1644545438972,0.371673,43069.0,43067.0,0.00011858]
[1644545439171,0.38100852,43069.0,43067.0,0.00011858]
[1644545439376,0.38100852,43069.0,43062.0,0.02]
[1644545439377,1.575273,43068.0,43062.0,0.02]
[1644545439575,0.228036,43065.0,43062.0,0.02]
[1644545439775,0.0464,43064.0,43062.0,0.0001]
[1644545439972,0.325273,43063.0,43062.0,0.0001]
[1644545440177,0.371673,43063.0,43062.0,0.0001]
[1644545440374,0.77991667,43063.0,43062.0,0.0001]
[1644545440678,0.77991667,43063.0,43050.0,0.21088056]
[1644545440679,0.95,43061.0,43050.0,0.0001]
[1644545440875,0.116251,43058.0,43050.0,0.0001]
[1644545441076,0.671673,43057.0,43050.0,0.0001]
[1644545441328,0.671673,43057.0,43040.0,0.0032]
[1644545441329,0.95,43050.0,43046.0,0.08850556]
[1644545441531,0.286168,43048.0,43046.0,0.08850556]
[1644545441727,0.371673,43047.0,43046.0,0.08350556]
[1644545441928,0.471673,43047.0,43046.0,0.08350556]
[1644545442627,0.371673,43047.0,43046.0,0.08350556]
[1644545442833,0.42980513,43047.0,43046.0,0.08350556]
[1644545443828,0.371673,43047.0,43046.0,0.08350556]
[1644545444927,0.058132,43048.0,43046.0,0.08350556]
[1644545445170,0.274408,43047.0,43046.0,0.08350556]
[1644545446273,0.228008,43047.0,43046.0,0.08350556]
[1644545446472,0.458008,43047.0,43046.0,0.08350556]
[1644545447473,0.23,43047.0,43046.0,0.08350556]
[1644545447673,0.23,43047.0,43046.0,0.13350556]
[1644545448274,0.23,43047.0,43046.0,0.08350556]
[1644545449417,0.458008,43047.0,43046.0,0.08350556]
[1644545450218,0.4577442,43047.0,43046.0,0.08350556]
[1644545450421,0.2297362,43047.0,43046.0,0.08350556]
[1644545450617,0.4577442,43047.0,43046.0,0.08350556]
[1644545450818,0.2297362,43047.0,43046.0,0.13350556]
[1644545453677,0.5,43055.0,43048.0,0.95]
[1644545453877,0.15795583,43064.0,43053.0,0.08284444]
[1644545453878,0.56965209,43063.0,43053.0,0.08284444]
[1644545454079,0.228008,43059.0,43053.0,0.058109]
[1644545454276,0.058107,43058.0,43053.0,0.05828016]
[1644545454575,0.058107,43058.0,43055.0,0.39767599]
[1644545454778,0.058107,43058.0,43055.0,0.44767599]
[1644545455174,0.058107,43058.0,43054.0,0.00017116]
[1644545455375,0.228008,43057.0,43052.0,0.05017116]
[1644545455579,0.058111,43056.0,43054.0,0.00038544]
[1644545455776,0.228008,43055.0,43054.0,0.00038544]
[1644545455974,0.058111,43056.0,43054.0,0.00038544]
[1644545456420,0.058111,43056.0,43054.0,0.3222967]
[1644545456620,0.058111,43056.0,43053.0,0.10828216]
[1644545456820,0.058111,43056.0,43053.0,0.10866762]
[1644545457722,0.058111,43056.0,43054.0,0.4522227]
[1644545457924,0.058107,43059.0,43054.0,0.5684357]
[1644545458124,0.171893,43056.0,43054.0,0.16638416]
[1644545458323,0.171893,43056.0,43054.0,0.166213]
[1644545458324,0.399901,43056.0,43054.0,0.166213]
[1644545458523,0.399901,43056.0,43053.0,0.00017116]
[1644545458724,0.228008,43055.0,43052.0,0.00055662]
[1644545458924,0.228008,43055.0,43051.0,0.00017116]
[1644545459125,0.058118,43054.0,43051.0,0.058116]
[1644545459326,0.228008,43053.0,43052.0,0.00038546]
[1644545460173,0.228008,43053.0,43051.0,0.05828716]
[1644545460371,0.058118,43054.0,43051.0,0.058116]
[1644545460372,0.228008,43052.0,43051.0,0.058116]
[1644545460574,0.058118,43054.0,43051.0,0.05828716]
[1644545460776,0.228008,43053.0,43050.0,0.00055664]
[1644545460973,0.228008,43053.0,43051.0,0.00017116]
[1644545461172,0.218008,43053.0,43050.0,0.00055664]
[1644545461372,0.27613,43053.0,43050.0,0.00038548]
[1644545461572,0.218008,43053.0,43050.0,0.00038548]
[1644545462575,0.218008,43053.0,43047.0,0.00017116]
[1644545462576,0.218012,43051.0,43047.0,0.00017116]
[1644545462775,0.218012,43051.0,43049.0,0.00038549]
[1644545462973,0.50811949,43050.0,43049.0,0.00038549]
[1644545463822,0.276136,43050.0,43047.0,0.00017116]
[1644545464023,0.058124,43050.0,43047.0,0.0003855]
[1644545464224,0.38888086,43049.0,43047.0,0.00055666]
[1644545464525,0.058124,43050.0,43047.0,0.0003855]
[1644545464724,0.058124,43050.0,43047.0,0.00055666]
[1644545465127,0.058124,43050.0,43047.0,0.00017116]
[1644545465324,0.058124,43050.0,43046.0,0.24180072]
[1644545465929,0.058124,43050.0,43046.0,0.24162956]
[1644545466326,0.218012,43049.0,43046.0,0.24162956]
[1644545466525,0.218012,43048.0,43046.0,0.24162956]
[1644545467326,0.4057532,43049.0,43046.0,0.24162956]
[1644545467578,0.218012,43048.0,43046.0,0.24162956]
[1644545467774,0.276132,43048.0,43046.0,0.24180072]
[1644545467972,0.276132,43048.0,43046.0,0.24162956]
[1644545468579,0.05812,43048.0,43046.0,0.24162956]
[1644545469577,0.46009713,43048.0,43046.0,0.24162956]
[1644545470177,0.67810913,43048.0,43046.0,0.18350556]
[1644545470677,0.67810913,43048.0,43046.0,0.13350556]
[1644545470877,0.67810913,43048.0,43046.0,0.08350556]
[1644545472232,0.67810913,43048.0,43046.0,0.18350556]
[1644545473033,0.67810913,43048.0,43046.0,0.13350556]
[1644545473235,0.67810913,43048.0,43046.0,0.08350556]
[1644545473835,0.67810913,43048.0,43046.0,0.13350556]
[1644545474235,0.67810913,43048.0,43046.0,0.18350556]
[1644545474435,0.67810913,43048.0,43046.0,0.13350556]
[1644545474835,0.67810913,43048.0,43046.0,0.18350556]
[1644545475573,0.95,43047.0,43041.0,0.00513325]
[1644545475775,0.622548,43046.0,43041.0,0.00513325]
[1644545475971,0.58809857,43046.0,43041.0,0.00513325]
[1644545476173,0.392444,43045.0,43041.0,0.00513325]
[1644545476371,0.0464,43044.0,43041.0,0.00513325]
[1644545476573,0.52585485,43043.0,43041.0,0.00513325]
[1644545476772,0.0464,43042.0,43041.0,0.00513325]
[1644545476972,0.322553,43042.0,43041.0,0.00513325]
[1644545477374,0.322553,43042.0,43030.0,0.0012]
[1644545477375,0.95,43040.0,43030.0,0.0012]
[1644545477573,0.95,43040.0,43032.0,0.0004628]
[1644545477574,0.564412,43039.0,43032.0,0.0004628]
[1644545477773,0.564412,43039.0,43030.0,0.0012]
[1644545477774,0.8218201,43039.0,43030.0,0.0012]
[1644545478074,0.8218201,43039.0,43025.0,0.00126684]
[1644545478075,0.058159,43034.0,43025.0,0.00126684]
[1644545478273,0.264412,43033.0,43025.0,0.00126684]
[1644545478572,0.32436415,43026.0,43025.0,0.00126684]
[1644545478830,0.58877615,43026.0,43025.0,0.00126684]
[1644545479226,0.64693515,43026.0,43025.0,0.00126684]
[1644545479626,0.9141071,43026.0,43025.0,0.00126684]
[1644545480627,0.58974295,43026.0,43025.0,0.00126684]
[1644545483582,0.58974295,43026.0,43021.0,0.05742919]
[1644545483583,0.218012,43025.0,43021.0,0.05742919]
[1644545483782,0.264412,43025.0,43024.0,0.35072962]
[1644545483990,0.1,43027.0,43024.0,0.35072962]
[1644545484183,0.1,43027.0,43025.0,0.325591]
[1644545484383,0.8,43038.0,43025.0,0.325591]
[1644545484582,0.3,43038.0,43024.0,0.45072962]
[1644545484882,0.33683126,43035.0,43031.0,0.28576479]
[1644545485082,0.058142,43034.0,43029.0,0.158141]
[1644545485581,0.058142,43034.0,43029.0,0.21628527]
[1644545485782,0.058142,43034.0,43029.0,0.158141]
[1644545486082,0.05290365,43034.0,43029.0,0.66973166]
[1644545486723,0.05290365,43034.0,43029.0,0.72787494]
[1644545486924,0.05290365,43034.0,43029.0,0.46630069]
[1644545487325,0.05290365,43034.0,43029.0,0.108141]
[1644545488324,0.30130728,43032.0,43029.0,0.108141]
[1644545488524,0.05815,43031.0,43029.0,0.108141]
[1644545488925,0.05815,43031.0,43029.0,0.05]
[1644545489128,0.05815,43031.0,43027.0,0.058154]
[1644545490081,0.38679757,43029.0,43027.0,0.058154]
[1644545491174,0.38679757,43029.0,43025.0,0.00017013]
[1644545491374,0.38679757,43029.0,43024.0,0.05017013]
[1644545492072,0.38679757,43029.0,43024.0,0.00017013]
[1644545492272,0.61679757,43029.0,43023.0,0.00112872]
[1644545492472,0.05431702,43027.0,43023.0,0.00112872]
[1644545492873,0.28810568,43025.0,43023.0,0.00112872]
[1644545493074,0.28810568,43025.0,43023.0,0.00129885]
[1644545493274,0.28810568,43025.0,43023.0,0.00112872]
[1644545494229,0.058155,43024.0,43023.0,0.00112872]
[1644545494826,0.30196841,43020.0,43019.0,0.116307]
[1644545495228,0.95,43019.0,43007.0,0.0011]
[1644545495439,0.95,43019.0,42998.0,0.3723103]
[1644545495440,0.29836508,42997.0,42993.0,0.09766877]
[1644545495635,0.29836508,42997.0,42980.0,0.67103046]
[1644545495636,0.3464,42996.0,42980.0,0.67103046]
[1644545495830,0.3464,42996.0,42971.0,0.3998]
[1644545495831,0.95,42993.0,42970.0,0.0001]
[1644545496029,0.95,42982.0,42970.0,0.00100736]
[1644545496230,1.9135977,42980.0,42965.0,0.002]
[1644545496432,0.2618298,42967.0,42965.0,0.002]
[1644545496635,0.95,42965.0,42950.0,0.0021]
[1644545496835,0.0464,42966.0,42955.0,0.20831275]
[1644545496836,0.0464,42964.0,42955.0,0.20831275]
[1644545497032,0.0464,42963.0,42955.0,0.20831275]
[1644545497228,0.116463,42966.0,42955.0,0.20831275]
[1644545497229,0.0464,42962.0,42955.0,0.20831275]
[1644545497431,0.0464,42961.0,42955.0,0.20831275]
[1644545497699,0.23903029,42960.0,42957.0,0.00038135]
[1644545497898,0.85,42959.0,42950.0,0.00020709]
[1644545498099,0.0464,42958.0,42950.0,0.00020709]
[1644545498297,0.0464,42957.0,42950.0,0.00020709]
[1644545498502,0.0464,42956.0,42950.0,0.00020709]
[1644545498699,0.058252,42955.0,42950.0,0.00020709]
[1644545498898,0.0464,42954.0,42941.0,0.01134013]
[1644545499099,0.19617786,42953.0,42941.0,0.01134013]
[1644545499298,0.0464,42952.0,42941.0,0.01134013]
[1644545499503,0.3,42951.0,42941.0,0.00885101]
[1644545499700,0.3,42951.0,42942.0,0.26591326]
[1644545499701,0.05,42949.0,42942.0,0.26591326]
[1644545499898,0.684853,42950.0,42942.0,0.77686392]
[1644545499899,0.0464,42948.0,42942.0,0.77686392]
[1644545500098,0.0464,42947.0,42942.0,0.76686392]
[1644545500299,0.05699192,42957.0,42945.0,0.2]
[1644545500498,0.08973404,42955.0,42954.0,0.35]
[1644545500701,0.0464,42964.0,42955.0,0.325591]
[1644545500901,0.0464,42971.0,42959.0,0.05]
[1644545501099,0.0464,42971.0,42961.0,0.058214]
[1644545501332,0.05711839,42981.0,42968.0,0.05]
[1644545501636,0.05711839,42981.0,42969.0,0.371991]
[1644545501637,0.55711839,42981.0,42969.0,0.371991]
[1644545501832,0.5,42981.0,42971.0,0.07205395]
[1644545502036,0.5,42981.0,42980.0,0.05]
[1644545502037,0.4859,42981.0,42980.0,0.05]
[1644545502230,0.05721922,42993.0,42981.0,0.325591]
[1644545502428,0.05721922,42993.0,42987.0,0.325591]
[1644545502628,0.05721922,42993.0,42986.0,0.32048663]
[1644545502629,0.05721922,42993.0,42989.0,0.325591]
[1644545502830,0.05721922,42993.0,42988.0,0.0464]
[1644545502831,0.05721922,42993.0,42992.0,0.955791]
[1644545503029,0.05721922,42993.0,42992.0,1.07560301]
[1644545503329,0.05721922,42993.0,42992.0,1.27560301]
[1644545503530,0.01,42999.0,42992.0,1.27560301]
[1644545503832,0.06730333,43009.0,42999.0,0.95]
[1644545504031,0.01,43009.0,43001.0,0.325591]
[1644545504232,0.01,43009.0,43002.0,0.0464]
[1644545504430,0.01,43009.0,42996.0,0.0464]
[1644545505136,0.33549223,43001.0,42996.0,0.0464]
[1644545505328,0.33549223,43001.0,42990.0,0.0464]
[1644545505329,0.39275045,43001.0,42990.0,0.0464]
[1644545505528,0.39275045,43001.0,42982.0,0.058189]
[1644545505726,0.39275045,43001.0,42977.0,0.0464]
[1644545505727,0.69275045,43001.0,42977.0,0.0464]
[1644545506128,0.32076692,42991.0,42985.0,0.65064902]
[1644545506328,0.51648183,43001.0,42986.0,0.325591]
[1644545506329,0.00057939,42994.0,42986.0,0.325591]
[1644545506726,0.00057939,42994.0,42985.0,0.65064902]
[1644545506927,0.00057939,42994.0,42987.0,0.325591]
[1644545507331,0.3194351,42994.0,42992.0,0.40135598]
[1644545507529,0.3194351,42994.0,42992.0,0.05]
[1644545507728,0.05725822,43001.0,42992.0,0.05]
[1644545508529,0.05725822,43001.0,42994.0,0.28619241]
[1644545508730,0.35072599,42996.0,42994.0,0.28619241]
[1644545509134,0.35072599,42996.0,42992.0,0.05]
[1644545509835,0.35130537,42996.0,42992.0,0.05]
[1644545510232,0.35130537,42996.0,42993.0,0.32572452]
[1644545510233,0.30130537,42996.0,42993.0,0.32572452]
[1644545510432,0.30130537,42996.0,42992.0,0.05]
[1644545510831,0.30072599,42996.0,42992.0,0.05]
[1644545511032,0.30130537,42996.0,42992.0,0.05]
[1644545511433,0.00057938,42996.0,42995.0,0.70555015]
[1644545511637,0.00057938,42996.0,42995.0,1.04278384]
[1644545512033,0.01,43000.0,42995.0,1.04278384]
[1644545512232,0.01,43000.0,42996.0,0.32575712]
[1644545512436,0.01,43000.0,42998.0,0.58829819]
[1644545512675,0.01,43000.0,42999.0,0.64624178]
[1644545512875,0.01,43000.0,42999.0,0.69624178]
[1644545513076,0.01,43000.0,42999.0,0.325591]
[1644545513280,0.01,43000.0,42997.0,0.00016612]
[1644545513482,0.01,43000.0,42993.0,0.00016612]
[1644545513483,0.24,43000.0,42993.0,0.00016612]
[1644545513678,0.298193,43000.0,42992.0,0.05]
[1644545514077,0.298193,43000.0,42994.0,0.31020704]
[1644545514278,0.3125593,42996.0,42994.0,0.31020704]
[1644545514576,0.3125593,42996.0,42992.0,0.05]
[1644545514577,0.3125593,42996.0,42993.0,0.00016612]
[1644545514777,0.3125593,42996.0,42992.0,0.05]
[1644545514982,0.3125593,42996.0,42993.0,0.00016612]
[1644545515177,0.3125593,42996.0,42992.0,0.05]
[1644545515977,0.31313902,42996.0,42992.0,0.05]
[1644545516437,0.00057972,42996.0,42994.0,0.325591]
[1644545516838,0.24,43000.0,42994.0,0.375591]
[1644545517032,0.24,43000.0,42994.0,0.05016612]
[1644545517233,0.00057972,42996.0,42994.0,0.00016612]
[1644545517434,0.00057972,42996.0,42994.0,0.32613574]
[1644545517834,0.00057972,42996.0,42994.0,0.37613574]
[1644545518134,0.24,43000.0,42995.0,0.325591]
[1644545518334,0.00056724,42997.0,42995.0,0.00016612]
[1644545518536,0.00056724,42997.0,42994.0,0.37613574]
[1644545518735,0.00056724,42997.0,42995.0,0.325591]
[1644545518934,0.00056724,42997.0,42994.0,0.37613574]
[1644545519134,0.00056724,42997.0,42995.0,0.31888275]
[1644545519335,0.24,43000.0,42995.0,0.31888275]
[1644545519537,0.00056723,42998.0,42995.0,0.31904887]
[1644545519735,0.00056723,42998.0,42996.0,0.375591]
[1644545519935,0.00056723,42998.0,42997.0,0.325591]
[1644545520178,0.00056723,42998.0,42997.0,0.05]
[1644545520379,0.24,43000.0,42997.0,0.325591]
[1644545520578,0.24,43000.0,42997.0,0.00016612]
[1644545520780,0.05725822,43001.0,42998.0,0.325591]
[1644545520983,0.08589525,43017.0,43003.0,0.325591]
[1644545521190,0.15922361,43016.0,43005.0,0.375591]
[1644545521380,0.15922361,43016.0,43007.0,0.325591]
[1644545521578,0.01,43019.0,43008.0,0.325591]
[1644545521794,0.01,43019.0,43008.0,0.65532732]
[1644545522179,0.01,43019.0,43008.0,0.70532732]
[1644545522579,0.34135985,43015.0,43008.0,0.70532732]
[1644545523183,0.00046875,43011.0,43008.0,0.70532732]
[1644545524029,0.01,43019.0,43008.0,0.70532732]
[1644545524229,0.00046875,43011.0,43008.0,0.70532732]
[1644545524633,0.00046875,43011.0,43009.0,0.95]
[1644545524834,0.00046875,43011.0,43010.0,0.44713332]
[1644545525033,0.00046875,43011.0,43010.0,0.48993332]
[1644545525232,0.01,43019.0,43010.0,0.53993332]
[1644545525435,0.01,43019.0,43014.0,0.325713]
[1644545525632,0.01,43019.0,43014.0,0.67086601]
[1644545525834,0.24,43019.0,43015.0,0.75628716]
[1644545526033,0.24,43019.0,43016.0,0.325713]
[1644545526233,0.24,43019.0,43016.0,0.375713]
[1644545526435,0.24,43019.0,43017.0,0.325713]
[1644545527335,0.24,43019.0,43014.0,0.05]
[1644545527336,0.301924,43018.0,43014.0,0.05]
[1644545528479,0.301924,43018.0,43008.0,0.32191853]
[1644545528480,0.31496576,43017.0,43008.0,0.32191853]
[1644545528681,0.301924,43016.0,43012.0,0.05]
[1644545529185,0.30057967,43015.0,43012.0,0.05]
[1644545529382,0.301924,43014.0,43012.0,0.05]
[1644545532140,0.360093,43014.0,43012.0,0.05]
[1644545536282,0.28013468,43013.0,43012.0,0.05]
[1644545536482,0.58205868,43013.0,43012.0,0.05]
[1644545536683,0.301924,43013.0,43012.0,0.05]
[1644545538084,0.301924,43014.0,43012.0,0.05]
[1644545540133,0.11691867,43015.0,43012.0,0.05]
[1644545540134,0.00057967,43015.0,43012.0,0.05]
[1644545540333,0.00057967,43015.0,43014.0,0.08193646]
[1644545540532,0.00057967,43015.0,43014.0,0.40764946]
[1644545540733,0.00057967,43015.0,43014.0,0.45764946]
[1644545540934,0.24,43019.0,43014.0,0.45764946]
[1644545541138,0.24,43019.0,43018.0,0.3365127]
[1644545541333,0.24,43019.0,43018.0,0.7122257]
[1644545541537,0.24,43019.0,43018.0,0.325713]
[1644545541737,0.541924,43019.0,43015.0,0.28571176]
[1644545541936,0.301924,43018.0,43014.0,0.05]
[1644545542236,0.24,43019.0,43012.0,0.1]
[1644545542437,0.24,43019.0,43012.0,0.44300703]
[1644545542438,0.298162,43019.0,43012.0,0.44300703]
[1644545542681,0.24,43019.0,43014.0,0.325713]
[1644545542881,0.24,43019.0,43015.0,0.29439301]
[1644545543281,0.24,43019.0,43015.0,0.34439301]
[1644545543483,0.24057966,43019.0,43015.0,0.34439301]
[1644545544181,0.24057966,43019.0,43016.0,0.325713]
[1644545544382,0.24057966,43019.0,43017.0,0.325713]
[1644545544583,0.24,43019.0,43015.0,0.34439301]
[1644545544783,0.24057966,43019.0,43015.0,0.34439301]
[1644545544983,0.24057966,43019.0,43016.0,0.325713]
[1644545545182,0.24057966,43019.0,43015.0,0.34439301]
[1644545545682,0.24,43019.0,43015.0,0.34439301]
[1644545545881,0.24057104,43019.0,43015.0,0.34439301]
[1644545546529,0.24057104,43019.0,43015.0,0.05]
[1644545546730,0.301924,43018.0,43012.0,0.05]
[1644545546929,0.301924,43018.0,43012.0,0.1]
[1644545547328,0.301924,43018.0,43012.0,0.05]
[1644545547628,0.301924,43014.0,43012.0,0.05]
[1644545548428,0.301864,43014.0,43012.0,0.04993079]
[1644545548630,0.301864,43014.0,43013.0,0.058157]
[1644545548833,0.00057105,43015.0,43013.0,0.058157]
[1644545549229,0.24,43019.0,43013.0,0.058157]
[1644545549629,0.00057967,43016.0,43013.0,0.058157]
[1644545550477,0.24,43019.0,43013.0,0.058157]
[1644545550680,0.301869,43018.0,43013.0,0.058156]
[1644545550879,0.00057967,43017.0,43013.0,0.058156]
[1644545551280,0.301869,43016.0,43013.0,0.058156]
[1644545551485,0.00057967,43017.0,43013.0,0.058156]
[1644545551486,0.301869,43015.0,43013.0,0.058156]
[1644545551780,0.301869,43017.0,43013.0,0.058156]
[1644545551981,0.301869,43016.0,43013.0,0.058156]
[1644545552181,0.00057967,43017.0,43013.0,0.058156]
[1644545552383,0.301869,43016.0,43013.0,0.058156]
[1644545552786,0.301869,43016.0,43013.0,0.116312]
[1644545552984,0.24,43019.0,43014.0,0.05]
[1644545552985,0.301869,43018.0,43014.0,0.05]
[1644545553185,0.00057967,43017.0,43016.0,0.325679]
[1644545554032,0.24,43019.0,43016.0,0.325679]
[1644545554229,0.24,43019.0,43016.0,0.116305]
[1644545554429,0.24057966,43019.0,43016.0,0.116305]
[1644545554629,0.24057966,43019.0,43016.0,0.058153]
[1644545554830,0.24057966,43019.0,43018.0,0.325679]
[1644545555030,0.23557966,43019.0,43018.0,0.325679]
[1644545555231,0.23557966,43019.0,43018.0,0.76224159]
[1644545555432,0.235,43019.0,43018.0,0.76224159]
[1644545555831,0.235,43019.0,43018.0,0.81224159]
[1644545556638,0.235,43019.0,43018.0,1.11953925]
[1644545558983,0.01,43029.0,43025.0,0.08758031]
[1644545559385,0.01,43029.0,43028.0,0.05]
[1644545559583,0.01,43029.0,43028.0,0.375679]
[1644545559783,0.01,43029.0,43028.0,0.475679]
[1644545560083,0.01,43029.0,43028.0,1.25152981]
[1644545560283,0.01,43029.0,43028.0,1.36777864]
[1644545560786,0.00057963,43031.0,43028.0,1.36777864]
[1644545560983,0.00057963,43031.0,43029.0,0.325679]
[1644545561184,0.01,43039.0,43029.0,0.325679]
[1644545561185,0.00529963,43039.0,43030.0,0.55]
[1644545561429,0.00529963,43039.0,43037.0,0.70241721]
[1644545561627,0.00486831,43039.0,43037.0,0.75241721]
[1644545561834,0.00486831,43039.0,43038.0,0.325679]
[1644545562030,0.42,43047.0,43045.0,0.0794107]
[1644545562231,0.01,43049.0,43045.0,0.1794107]
[1644545562429,0.301869,43048.0,43046.0,0.17431029]
[1644545562632,0.01,43049.0,43047.0,0.31774133]
[1644545562831,0.01,43049.0,43048.0,0.52989297]
[1644545563030,0.01,43049.0,43048.0,0.62989297]
[1644545564632,0.01,43049.0,43048.0,0.425679]
[1644545564830,0.01,43049.0,43046.0,0.520904]
[1644545565081,0.01,43049.0,43046.0,0.42]
[1644545565685,0.25869149,43048.0,43045.0,0.05]
[1644545566284,0.01,43049.0,43045.0,0.05]
[1644545566482,0.01058171,43049.0,43045.0,0.05]
[1644545567284,0.301869,43048.0,43045.0,0.05]
[1644545567483,0.01,43049.0,43045.0,0.05]
[1644545567682,0.01058171,43049.0,43045.0,0.05]
[1644545567883,0.00558171,43054.0,43046.0,0.325679]
[1644545568083,0.00558171,43054.0,43050.0,0.19777333]
[1644545568383,0.00558171,43054.0,43051.0,0.37336553]
[1644545568384,0.301869,43053.0,43051.0,0.37336553]
[1644545568842,0.301869,43053.0,43051.0,0.05]
[1644545569237,0.359981,43053.0,43049.0,0.1]
[1644545569438,0.334981,43053.0,43049.0,0.05]
[1644545569641,0.334981,43053.0,43046.0,0.1]
[1644545570438,0.31375278,43047.0,43045.0,0.05]
[1644545570640,0.276899,43046.0,43045.0,0.05]
[1644545572447,0.55690179,43046.0,43045.0,0.05]
[1644545573186,0.69327966,43046.0,43045.0,0.05]
[1644545573389,0.78607966,43046.0,43045.0,0.05]
[1644545573784,0.78607966,43046.0,43040.0,0.05]
[1644545573986,0.058134,43044.0,43040.0,0.05]
[1644545574187,0.276899,43043.0,43040.0,0.05]
[1644545574790,0.55755285,43043.0,43040.0,0.05]
[1644545575488,0.05,43042.0,43040.0,0.05]
[1644545575692,0.05,43042.0,43033.0,0.00151623]
[1644545575693,0.37620998,43041.0,43023.0,0.05]
[1644545575888,0.058153,43037.0,43025.0,0.33493545]
[1644545576186,0.55823052,43036.0,43033.0,0.00151624]
[1644545576433,0.276899,43034.0,43033.0,0.00151624]
[1644545576833,0.56796626,43034.0,43025.0,0.33493545]
[1644545577031,0.56796626,43034.0,43031.0,0.00037907]
[1644545577233,0.276899,43032.0,43031.0,0.00037907]
[1644545578034,0.55745765,43032.0,43023.0,0.05]
[1644545578333,0.31509528,43028.0,43023.0,0.40499744]